[Event "Stay Safe Play From Home 259"]
[Site "Emanuel Lasker Arena"]
[Date "2020.06.28"]
[Round "4"]
[White "Trotsky"]
[Black "Justwatch"]
[Result "1-0"]
[WhiteElo "1551"]
[BlackElo "1785"]
[Annotator "NA RC"]
[PlyCount "25"]
[EventDate "2020.06.28"]
[EventType "swiss (blitz)"]
[TimeControl "60"]

1. d4 {[%emt 0:00:01]} Nf6 {[%emt 0:00:02]} 2. e3 {[%emt 0:00:00]} d6 {[%emt 0:00:01]} 3. c4 {[%emt 0:00:01]} g6 {[%emt 0:00:00]} 4. Nc3 {[%emt 0:00:01]} Bg7 {[%emt 0:00:00]} 5. Bd3 {[%emt 0:00:01]} O-O {[%emt 0:00:00]} 6. Qc2 {[%emt 0:00:00]} Nc6 {[%emt 0:00:00]} 7. Nf3 {[%emt 0:00:01]} e6 {[%emt 0:00:00]} 8. a3 {[%emt 0:00:00]} b6 {[%emt 0:00:00]} 9. Ng5 {[%emt 0:00:01]} a6 {[%emt 0:00:00]} 10. h4 {[%emt 0:00:01]} Ne7 {[%emt 0:00:00]} 11. h5 {[%emt 0:00:01]} Nf5 {[%emt 0:00:00]} 12. g4 {[%emt 0:00:02]} Ne7 {[%emt 0:00:01] Justwatch terk eder} 13. hxg6 {[%emt 0:00:02] (Lag: Av=0.44s, max=0.6s)} 1-0